Cogmind - Beta 14 @@@ ROGUE MODE // 2024.11.09 @ 04:46:17 Player: Hinzy Result: Smashed by cave-in Performance ------------- Evolutions (0) 0 Regions Visited (0) 0 Robots Destroyed (6) 30 Value Destroyed (75) 75 Prototype IDs (0) 0 Alien Tech Used (0) 0 Bonus (0) 0 TOTAL SCORE: 105 Bonus ------- None Cogmind --------- Core Integrity 0/250 Matter 246/300 Energy 59/100 System Corruption 21% Temperature Cool (0) Movement Core (50) Location -11/Scrapyard Parts ------- > --- POWER (1) -------- (None) > --- PROPULSION (2) --- (None) > --- UTILITY (2) ------ (None) > --- WEAPON (2) ------- (None) > --- INVENTORY (5) ---- Aluminum Leg Aluminum Leg Combat Airjet Tractor Beam Assault Rifle Peak State ------------ > --- POWER ------------ Light Ion Engine > --- PROPULSION ------- Light Treads Light Treads > --- UTILITY ---------- Improved Terrain Scanner Seismic Detector > --- WEAPON ----------- Assault Rifle Assault Rifle > --- INVENTORY -------- Light Ion Engine Aluminum Leg Aluminum Leg Small Storage Unit Tractor Beam [Rating: 9] Favorites ----------- Power Light Ion Engine Engine Light Ion Engine Propulsion Light Treads Treads Light Treads Utility Seismic Detector Device Seismic Detector Storage Small Storage Unit Weapon Assault Rifle Energy Gun Medium Laser Ballistic Gun Assault Rifle Special Weapon Mining Laser Build | -11 ------- Run | Yrd Slots Evolved . | . Power . | . Propulsion . | . Utility . | . Weapon . | . Parts Attached 15 | 15 Power 2 | 2 Engine 2 | 2 Core . | . Reactor . | . Propulsion 2 | 2 Treads 2 | 2 Leg . | . Wheel . | . Hover . | . Flight . | . Utility 7 | 7 Device 6 | 6 Storage 1 | 1 Processor . | . Hackware . | . Protection . | . Artifact . | . Weapon 4 | 4 Energy Gun 1 | 1 Energy Cannon . | . Ballistic Gun 2 | 2 Ballistic Cannon . | . Launcher . | . Special Weapon 1 | 1 Impact Weapon . | . Slashing Weapon . | . Piercing Weapon . | . Special Melee Weapon . | . Unidentified Prototypes . | . Parts Lost 9 | 9 Power 2 | 2 Propulsion 2 | 2 Utility 3 | 3 Weapon 2 | 2 Highest Loss Streak 7 | 7 To Critical Strikes . | . Average Slot Usage (%) . | . Peak Build Rating 9 | 9 Average Rating 8 | 8 On Entrance . | . Naked Turns . | . Heaviest Build 13 | 13 Greatest Support 40 | 40 Greatest Overweight (x) 1 | 1 Average Overweight (x) . | . Largest Inventory Capacity 8 | 8 Average Capacity 5 | 5 Most Carried 5 | 5 Average Carried 4 | 4 Final Capacity 5 | 5 Final Carried 5 | 5 Class Distribution -------------------- None Dominant Class ---------------- None Resources | -11 ----------- Run | Yrd Matter Collected 435 | 435 Remotely 153 | 153 Salvage Created 109 | 109 Parts 12 | 12 Haulers Intercepted . | . Recyclers Shooed . | . Parts Field Recycled . | . Retrieved Matter . | . Parts Self-Destructed . | . Prevented . | . Kills | -11 ------- Run | Yrd Combat Hostiles Destroyed 1 | 1 Guns 1 | 1 Classes Destroyed 4 | 4 Worker 2 | 2 Tunneler 2 | 2 Recycler 1 | 1 Demolisher 1 | 1 Best Kill Streak 3 | 3 Combat Bots Only 1 | 1 Max Kills in Single Turn 1 | 1 Gunslinging . | . Exploded . | . Melee . | . Uniques/NPCs Destroyed . | . Combat | -11 -------- Run | Yrd Hostile Shots Fired 7 | 7 Missed . | . Damage Taken 999 | 999 Core 279 | 279 Absorbed by Shields . | . Core Remaining (%) . | . Volleys Fired 67 | 67 Largest 2 | 2 Hottest 100 | 100 Shots Fired 100 | 100 Gun 66 | 66 Cannon . | . Launcher . | . Special 34 | 34 Kinetic 63 | 63 Thermal 37 | 37 Explosive . | . Electromagnetic . | . Robot Hit Streak 12 | 12 Robot Miss Streak 6 | 6 Penetration Max . | . Secondary Targets 1 | 1 Max Gunslinging Chain 1 | 1 Shots Hit Robots 38 | 38 Core Hits 9 | 9 Critical Kills . | . Critical Parts Destroyed . | . Critical Strikes 1 | 1 Burn 1 | 1 Melee Attacks . | . Impact . | . Slashing . | . Piercing . | . Sneak Attacks . | . Combat Hostiles . | . Follow-up Attacks . | . Damage Inflicted 488 | 488 Guns 483 | 483 Cannons . | . Explosions . | . Melee . | . Ramming 5 | 5 Kinetic 446 | 446 Thermal 37 | 37 Explosive . | . Electromagnetic . | . Impact . | . Slashing . | . Piercing . | . Highest Corruption 17 | 17 Average Corruption 7 | 7 Corruption Purged . | . Corruption Blocked . | . Effects 1 | 1 Matter Fused 1 | 1 Overload Shots . | . Overflow Damage . | . Projectiles . | . Explosions . | . Melee . | . Knockbacks . | . Impact . | . Kinetic . | . Secondary . | . Self-Inflicted Damage . | . Shots . | . Rammed 3 | 3 Targets Rammed 5 | 5 Kicked . | . Crushed 2 | 2 Highest Temperature 42 | 42 Average Temperature 13 | 13 Received Heat Transfer . | . Siege Activations . | . Robots Corrupted . | . Combat Hostiles . | . Parts Fried . | . Impact Corruptions . | . Robots Melted . | . Combat Hostiles . | . Parts Melted . | . Heat Transferred 185 | 185 Parts Sabotaged . | . Parts Stolen . | . Parts Stripped . | . Power Chain Reactions . | . Alert | -11 ------- Run | Yrd Peak Influence 20 | 20 Initial . | . Average 1 | 1 Maximum Alert Level . | . Low Security (%) 100 | 100 Level 1 . | . Level 2 . | . Level 3 . | . Level 4 . | . Level 5 . | . High Security . | . Max Security . | . Squads Dispatched . | . Investigation . | . Extermination . | . Reinforcement . | . Assault . | . Garrison . | . Intercept . | . Searches Triggered . | . Construction Impeded . | . Haulers Reinforced . | . Active Scanning Responses . | . Cargo Convoy Interrupts . | . Stealth | -11 --------- Run | Yrd Distress Signals . | . Communications Jammed . | . Distress Signals . | . Times Spotted 2 | 2 Peak Tracking Total 2 | 2 Tactical Retreats . | . Traps | -11 ------- Run | Yrd Traps Triggered . | . Indirectly . | . Trap Hack Attempts . | . Triggered . | . Disarmed . | . Reprogrammed . | . Reused . | . Traps Extracted . | . Installed . | . Triggered . | . Machines | -11 ---------- Run | Yrd Machines Disabled . | . Max in Single Turn . | . Machines Repaired . | . Machines Dismantled . | . Machines Sabotaged . | . Overloaded Fab Kills . | . Hacking | -11 --------- Run | Yrd Machines Accessed . | . Terminals . | . Fabricators . | . Repair Stations . | . Recycling Units . | . Scanalyzers . | . Garrison Access . | . Total Hacks . | . Successful . | . Failed . | . Catastrophic . | . Database Lockouts . | . Manual . | . Terminals . | . Fabricators . | . Repair Stations . | . Recycling Units . | . Scanalyzers . | . Garrison Access . | . Terminal Hacks . | . Fabricator Hacks . | . Repair Station Hacks . | . Recycling Unit Hacks . | . Scanalyzer . | . Garrison Access Hacks . | . Unauthorized Hacks . | . Terminals . | . Fabricators . | . Repair Stations . | . Recycling Units . | . Scanalyzers . | . Garrison Access . | . Data Cores Recovered . | . Used . | . Hacking Detections . | . Full Trace Events . | . Feedback Events . | . Feedback Blocked . | . Robot Schematics Acquired . | . Robots Built . | . Authchips . | . Time . | . Total Robot Build Rating . | . Part Schematics Acquired . | . Parts Built . | . Authchips . | . Time . | . Total Part Build Rating . | . Parts Repaired . | . Time . | . Parts Recycled . | . Recycled Matter . | . Retrieved Matter . | . Retrieved Components . | . Parts Scanalyzed . | . Part Schematics Acquired . | . Parts Damaged . | . Bothacking | -11 ------------ Run | Yrd Used RIF Installer . | . Robots Hacked . | . Non-combat . | . Combat . | . Robot Hacks Applied . | . Relay Couplers Released . | . Fabnet Peak Effective % . | . Robots Rewired . | . Allies Hacked . | . Hacks Repelled . | . Allies | -11 -------- Run | Yrd Total Allies . | . Largest Group . | . Highest-Rated Group . | . Highest-Rated Ally . | . Total Orders . | . Ally Attacks . | . Total Damage . | . Kills . | . Allies Corrupted . | . Allies Melted . | . Intel | -11 ------- Run | Yrd Robot Analysis Total . | . Derelict Logs Recovered . | . Drone Launches . | . Drone Recoveries . | . Exploration | -11 ------------- Run | Yrd Turns Passed 6059 | 6059 Spaces Moved 1314 | 1314 Core 7 | 7 Treads 1307 | 1307 Legs . | . Wheels . | . Hover . | . Flight . | . Fastest Speed 50 | 50 Average Speed 159 | 159 Slowest Speed 160 | 160 Overloaded Moves . | . Propulsion Burnouts . | . Robots Hopped . | . Cave-ins Triggered 4 | 4 Exploration Rate (%) 98 | 98 Regions Visited . Branch Regions . Pre-discovered Areas . | . Known Exits Taken . | . Unknown Exits Taken . | . Scrap Searched . | . Spaces Dug 33 | 33 Terrain Destroyed 33 | 33 Melee . | . Projectile 33 | 33 AOE . | . Terrain Rammed . | . Walls Destroyed . | . Machines Disabled . | . Actions | -11 --------- Run | Yrd Total 5105 | 5105 Wait 3691 | 3691 Move 1311 | 1311 Hop . | . Pick Up 6 | 6 Fast Attach 12 | 12 Attach 3 | 3 Detach 3 | 3 Swap . | . Drop 4 | 4 Fire 67 | 67 Melee . | . Ram . | . Kick . | . Crush 5 | 5 Escape Stasis 3 | 3 Rewire . | . Trap . | . Miscellaneous . | . Route ------- -11/Scrapyard (discovered 1 exit: [*Mat]) History --------- Turn | Location | Event 7 | -11/Scrapyard | Discovered new exit (range 14) 1174 | -11/Scrapyard | Assembled infested the area 6024 | -11/Scrapyard | Crushed by falling debris 6025 | -11/Scrapyard | Core integrity fell below 50% 6046 | -11/Scrapyard | Crushed by falling debris 6047 | -11/Scrapyard | System corruption reached 10% 6052 | -11/Scrapyard | Crushed by falling debris 6053 | -11/Scrapyard | Core integrity fell below 20% 6061 | -11/Scrapyard | Crushed by falling debris 6061 | -11/Scrapyard | Smashed by cave-in Last Messages --------------- 06024_ System corrupted by crushing effect (+1). 06024_ Imp. Terrain Scanner destroyed. 06024_ System corrupted by crushing effect (+2). 06031_ The unstable cave ceiling collapses. 06046_ Crushed by falling debris. 06046_ Lgt. Treads destroyed. 06046_ System corrupted by crushing effect (+3). 06046_ Med. Laser destroyed. 06046_ System corrupted by crushing effect (+3). 06046_ Lgt. Treads destroyed. 06046_ System corrupted by crushing effect (+3). 06052_ The unstable cave ceiling collapses. 06052_ Crushed by falling debris. 06052_ Lgt. Ion Engine destroyed. 06052_ System corrupted by crushing effect (+5). 06057_ System corrupted: Matter fused (-7). 06061_ The unstable cave ceiling collapses. 06061_ Crushed by falling debris. 06061_ Mining Laser destroyed. 06061_ System corrupted by crushing effect (+4). Map ----- +----------------------------------------------------+ | ## ############ ## # | | # # | | ## # | | ####### ###### #### # | | #?## # ## # | | ####?# # ## # | | ##??## # ## # | | #?#?## # ## # | | ???### # ## # | | ###### # ####### # | | ### # ###?### # | | ### # ####### # | | ### ## ###### # | | #?###############?#### ## | | #?#??###?#?######?#??## # | | ###?##???###?#?######?## | | ######?#?####?###???##?### # | | ?#?#??##?#####?###?#?##?#### | | ?##?##???##???##??#?###?# ## | | ??#?#?##????##?##?#??#??# #? | | ####?##??##?????#?#?#???# #? | | #?#??????##??##?#?#?#???###? | | ??????##?#?##????????##?# #? | | ###????##??#??????#?????# ## | | #???#??##????????????#?## ## | | ??##?###???????????????##@## | | ###???#????????????????## ## | | #???##????????????????#?###? | | ##???????????????????#?????? | | ???????????????????????????? | | ???????????????????????????? | | ???????????????????????????? | | ?#????????????????#????????? | | ???????????????????????????? | | ???????????????????????????? | | #??????????????????????????? | | ???????????????????????????? | | ?#?????????????????????????? | | #??????????????????????????? | | ???????????????????????????? | | ???????????????????????????? | | ???????????????????????????? | | ?#?????????????????????????? | | ???????????????????????????? | | | | | | | | | | | | | +----------------------------------------------------+ Best States ------------- Heat Dissipation 25 Energy Generation 10 Energy Capacity 125 Matter Stores 271 Matter Capacity 300 Sight Range 16 Terrain Scan Range 16 Terrain Scan Density 10 Evasion (%) 40 Recoil Reduction 2 Item Schematics ----------------- None Robot Schematics ------------------ None Fabricated ------------ Nothing Alien Tech Used ----------------- None Achievements -------------- Unlikely Earthworm Use The Force Challenges ------------ None Game ------ Seed ChargeWarpBeam Manual? 0 Play Time 00:30:22 Cumulative 6.9 hours Start 2024.11.09 @ 04:30:57 End 2024.11.09 @ 04:46:17 Sessions 0 Manual Loads 0 Difficulty Rogue Special Mode None Game No. 7 Rogue 7 Adventurer 0 Explorer 0 Win Type - Total 0 Types 0/0/0/0/0/0/0/0/0 Lore% 6 Gallery% 9 Achievement% 10 Wizard Run 0 Options --------- Layout 1 ASCII 0 Keyboard 1 Movement Numpad Keybinds 0 Fullscreen 1 Font 24/Proggy Map View 50x35 Zoom Use 0% Tactical HUD 1 Map Filters NONE Filters NONE Steam 1 RUN: f44b0051-4628-458d-aa6c-de9e99a49de7